bitfinex/quotes_ETHUSD_20250903
["timestamp","ask_amount","ask_price","bid_price","bid_amount"]
[1756880195384,1e-08,4310.3,4310.2,33.6732434]
[1756880201084,1e-08,4310.8,4310.7,2.31980884]
[1756880201285,1e-08,4310.8,4310.7,12.51317429]
[1756880201484,1e-08,4310.8,4310.7,16.73907429]
[1756880201710,1e-08,4310.8,4310.7,31.23907429]
[1756880201896,1e-08,4310.8,4310.7,31.33202157]
[1756880202452,1e-08,4310.8,4310.7,32.12402157]
[1756880202812,1e-08,4311.2,4311.1,3.1115936]
[1756880202984,1e-08,4311.2,4311.1,8.81178953]
[1756880203182,1e-08,4311.2,4311.1,12.6376936]
[1756880203389,1e-08,4311.2,4311.1,27.5144936]
[1756880203720,1e-08,4311.2,4311.1,27.6304936]
[1756880204000,1e-08,4311.2,4311.1,34.10865905]
[1756880204904,1e-08,4311.2,4311.1,29.12895905]
[1756880205111,1e-08,4311.2,4311.1,32.88175905]
[1756880205493,1e-08,4311.2,4311.1,33.34539151]
[1756880205915,1e-08,4311.2,4311.1,34.28309151]
[1756880206686,1e-08,4311.2,4311.1,33.05719151]
[1756880206913,1e-08,4311.2,4311.1,33.34539151]
[1756880207105,1e-08,4311.2,4311.1,33.79029151]
[1756880207418,1e-08,4311.2,4311.1,34.28309151]
[1756880208824,1e-08,4311.2,4311.1,33.79029151]
[1756880209130,1e-08,4311.2,4311.1,34.28309151]
[1756880217242,1e-08,4311.2,4311.1,34.28709151]
[1756880222156,1e-08,4311.8,4311.7,3.11127082]
[1756880222325,1e-08,4311.8,4311.7,13.17763627]
[1756880222530,1e-08,4311.8,4311.7,13.60183627]
[1756880222730,1e-08,4311.8,4311.7,14.50893627]
[1756880223048,1e-08,4311.8,4311.7,29.00893627]
[1756880224323,1e-08,4311.8,4311.7,28.57613627]
[1756880224563,1e-08,4312.1,4312.0,12.14547491]
[1756880224728,1e-08,4312.1,4312.0,17.80947491]
[1756880225058,0.29140001,4312.1,4312.0,17.92547491]
[1756880225357,1e-08,4312.3,4312.2,3.1110019]
[1756880225558,1e-08,4312.3,4312.2,7.1410019]
[1756880225869,0.78690001,4312.3,4312.2,3.1110019]
[1756880226164,0.78690001,4312.3,4312.2,21.6410019]
[1756880226336,0.29140001,4312.3,4312.2,21.6410019]
[1756880227239,1e-08,4312.3,4312.2,22.0652019]
[1756880227439,1e-08,4312.3,4312.2,22.9723019]
[1756880227656,1e-08,4312.3,4312.2,25.9723019]
[1756880228056,1e-08,4312.3,4312.2,26.06521744]
[1756880231149,0.4955,4313.7,4313.2,0.792]
[1756880231347,0.886,4313.7,4313.3,8.88741049]
[1756880231789,0.09900001,4313.4,4313.3,23.38741049]
[1756880231971,1e-08,4313.4,4313.3,30.33357474]
[1756880232146,1e-08,4313.4,4313.3,29.59257474]
[1756880232879,1e-08,4313.4,4313.3,29.90077474]
[1756880233054,0.4965,4314.3,4314.0,0.792]
[1756880233253,0.099,4314.1,4314.0,3.1100343]
[1756880233471,0.099,4314.1,4314.0,8.7700343]
[1756880233685,0.099,4314.1,4314.0,8.8860343]
[1756880233900,0.001,4314.3,4314.2,2.31792684]
[1756880234180,0.001,4314.3,4314.2,6.34292684]
[1756880234362,0.2914,4314.3,4314.2,6.34292684]
[1756880234765,0.2914,4314.3,4314.2,7.25092684]
[1756880235348,0.2914,4314.3,4314.2,7.74642684]
[1756880235756,0.2914,4314.3,4314.2,22.24642684]
[1756880236290,0.2914,4314.3,4314.2,18.22142684]
[1756880236490,0.2914,4314.3,4314.2,22.24542684]
[1756880237680,0.7869,4314.3,4314.2,22.24542684]
[1756880239970,0.021,4314.8,4314.7,3.10965823]
[1756880240159,0.021,4314.8,4314.7,7.13165823]
[1756880240487,0.021,4314.8,4314.7,7.24765823]
[1756880240792,0.021,4314.8,4314.7,22.24315823]
[1756880240991,0.12,4314.8,4314.7,22.24315823]
[1756880241791,0.021,4314.8,4314.7,22.24315823]
[1756880241958,0.021,4314.8,4314.7,22.55135823]
[1756880242355,1e-08,4314.8,4314.7,22.98415823]
[1756880242689,1e-08,4314.8,4314.7,23.45845823]
[1756880243495,1e-08,4314.8,4314.7,30.81204015]
[1756880244207,1e-08,4314.8,4314.7,33.81204015]
[1756880244574,1e-08,4315.2,4314.7,33.81204015]
[1756880244776,1e-08,4315.2,4315.1,11.26158192]
[1756880244973,1e-08,4315.2,4315.1,17.59802531]
[1756880245169,1e-08,4315.2,4315.1,32.83902531]
[1756880245492,1e-08,4315.2,4315.1,33.33452531]
[1756880245898,1e-08,4315.2,4315.1,21.22094339]
[1756880246111,0.59450001,4315.2,4315.1,17.42894339]
[1756880246398,0.59450001,4315.2,4315.1,21.44794339]
[1756880247271,0.09900001,4315.2,4315.1,21.44794339]
[1756880248404,0.09900001,4315.2,4315.1,21.44694339]
[1756880249669,0.95900001,4315.2,4315.1,16.93344339]
[1756880249883,0.95900001,4315.2,4315.1,20.95044339]
[1756880250094,0.95900001,4315.2,4315.1,16.93344339]
[1756880250287,0.95900001,4315.2,4315.1,20.95044339]
[1756880251467,0.57140001,4315.2,4315.1,20.95044339]
[1756880252194,0.95900001,4315.2,4315.1,20.95044339]
[1756880252696,0.95900001,4315.2,4315.1,20.94844339]
[1756880252879,0.95900001,4315.2,4315.1,6.44844339]
[1756880253393,0.95900001,4315.2,4315.1,20.94844339]
[1756880253700,0.57140001,4315.2,4315.1,16.93344339]
[1756880253903,0.95900001,4315.2,4315.1,18.515]
[1756880257801,0.95900001,4315.2,4315.1,4.015]
[1756880258487,0.95900001,4315.2,4315.1,18.515]
[1756880263518,0.57140001,4315.2,4315.1,20.83244339]
[1756880263870,0.57140001,4315.2,4315.1,18.515]
[1756880264513,0.57140001,4315.2,4315.1,20.83244339]
[1756880264888,1e-08,4315.2,4315.1,21.12324339]
[1756880265079,1e-08,4315.2,4315.1,22.15974339]
[1756880267906,1e-08,4315.2,4315.1,7.65974339]
[1756880268405,1e-08,4315.2,4315.1,22.15974339]
[1756880270507,1e-08,4315.2,4315.1,23.04460716]
[1756880271129,1e-08,4315.2,4315.1,21.23224339]
[1756880271279,1e-08,4315.2,4315.1,21.69984339]
[1756880271487,1e-08,4315.2,4315.1,22.15274339]
[1756880272812,1e-08,4315.2,4315.1,25.94474339]
[1756880273607,1e-08,4315.2,4315.1,25.94874339]
[1756880275932,1e-08,4315.2,4315.1,26.04159638]
[1756880282917,1e-08,4315.7,4315.6,3.1091749]
[1756880283122,1e-08,4315.7,4315.6,8.76834664]
[1756880283325,1e-08,4315.7,4315.6,10.1004749]
[1756880283627,1e-08,4315.7,4315.6,24.6004749]
[1756880285423,1e-08,4315.7,4315.6,24.1522749]
[1756880285735,1e-08,4315.7,4315.6,24.1027749]
[1756880289819,1e-08,4315.7,4315.6,24.6004749]
[1756880290333,0.09285298,4317.0,4315.6,24.6004749]
[1756880290334,0.4721,4316.8,4316.3,2.31679911]
[1756880290505,0.099,4316.4,4316.3,2.31679911]
[1756880290699,0.099,4316.4,4316.3,7.94879911]
[1756880290906,0.099,4316.4,4316.3,22.44879911]
[1756880291517,0.099,4316.4,4316.3,22.56479911]
[1756880292642,0.001,4316.6,4316.5,2.31669176]
[1756880292842,0.001,4316.6,4316.5,6.31569176]
[1756880293141,0.1,4316.6,4316.5,6.31569176]
[1756880294423,0.5521,4316.6,4316.5,6.31569176]
[1756880296148,0.5521,4316.6,4316.5,20.81569176]
[1756880296450,0.5521,4316.6,4316.5,20.81469176]
[1756880296666,0.9397,4316.6,4316.5,14.5]
[1756880296955,0.9397,4316.6,4316.5,20.81369176]
[1756880299224,0.9397,4316.6,4316.5,16.81669176]
[1756880299545,0.9397,4316.6,4316.5,20.81269176]
[1756880299745,0.5521,4316.6,4316.5,2.31669176]
[1756880299950,0.9397,4316.6,4316.5,3.996]
[1756880300246,0.1,4316.6,4316.5,20.81269176]
[1756880300812,0.9397,4316.6,4316.5,16.81669176]
[1756880301245,0.9397,4316.6,4316.5,20.81169176]
[1756880302056,0.9397,4316.6,4316.5,14.5]
[1756880302352,8.29328192,4316.6,4316.5,3.995]
[1756880302555,8.40928192,4316.6,4316.4,3.995]
[1756880302857,0.5681,4316.5,4316.4,3.995]
[1756880303021,0.9557,4316.5,4316.4,3.995]
[1756880303223,0.2179,4316.5,4316.4,6.31174543]
[1756880303567,0.67,4316.5,4316.4,6.31174543]
[1756880303765,0.554,4316.5,4316.4,6.31174543]
[1756880303971,0.554,4316.5,4316.4,6.42774543]
[1756880304342,0.001,4316.6,4316.5,2.31669176]
[1756880304957,0.1,4316.6,4316.5,16.81669176]
[1756880305525,0.001,4316.6,4316.5,16.81669176]
[1756880306267,0.1,4316.6,4316.5,16.81669176]
[1756880308044,0.001,4316.6,4316.5,16.81669176]
[1756880308669,0.001,4316.6,4316.5,20.80869176]
[1756880309173,0.9397,4316.6,4316.5,20.80869176]
[1756880309764,0.555,4316.6,4316.5,20.80869176]
[1756880309967,0.1029,4316.6,4316.5,20.80869176]
[1756880310153,0.1029,4316.6,4316.5,16.81669176]
[1756880310487,0.1029,4316.6,4316.5,20.80869176]
[1756880312178,0.001,4316.6,4316.5,21.11599176]
[1756880312475,0.001,4316.6,4316.5,20.80869176]
[1756880312680,0.001,4316.6,4316.5,21.57979176]
[1756880315098,0.001,4316.6,4316.5,22.07799176]
[1756880315696,0.1,4316.6,4316.5,16.81669176]
[1756880315862,0.1,4316.6,4316.5,20.80669176]
[1756880317366,0.001,4316.6,4316.5,20.80669176]
[1756880318495,0.001,4316.6,4316.5,21.57779176]
[1756880318676,0.001,4316.6,4316.5,22.07599176]
[1756880319570,0.001,4316.6,4316.5,21.57779176]
[1756880319884,0.1,4316.6,4316.5,20.80469176]
[1756880323298,0.1,4316.6,4316.5,20.80369176]
[1756880323694,0.001,4316.6,4316.5,20.80369176]
[1756880324212,0.001,4316.6,4316.5,21.57479176]
[1756880324509,0.001,4316.6,4316.5,22.07299176]
[1756880324870,0.001,4316.6,4316.5,16.81669176]
[1756880325072,0.001,4316.6,4316.5,20.80269176]
[1756880325278,0.001,4316.6,4316.5,21.57379176]
[1756880326591,0.001,4316.6,4316.5,17.58779176]
[1756880326781,0.1,4316.6,4316.5,20.80269176]
[1756880327308,0.001,4316.6,4316.5,20.80269176]
[1756880327499,0.001,4316.6,4316.5,16.81669176]
[1756880327696,0.001,4316.6,4316.5,20.80169176]
[1756880329319,0.5958,4316.6,4315.5,0.4982]
[1756880329520,6.02035413,4315.9,4315.6,2.31716819]
[1756880329831,6.13635413,4315.9,4315.8,3.988]
[1756880330025,6.63215413,4315.9,4315.8,3.988]
[1756880330223,6.91725413,4315.9,4315.8,3.988]
[1756880330425,0.4011,4315.9,4315.8,3.988]
[1756880331129,0.8969,4315.9,4315.8,0.004]
[1756880331306,6.91725413,4315.9,4315.8,3.988]
[1756880334690,7.12055413,4315.9,4315.8,14.504]
[1756880334896,7.12055413,4315.9,4315.8,18.488]
[1756880335495,7.12055413,4315.9,4315.8,0.004]
[1756880335699,13.42056796,4315.9,4315.8,0.004]
[1756880336988,16.42056796,4315.9,4315.8,0.004]
[1756880341033,12.23426796,4315.9,4315.8,0.004]
[1756880341231,12.23426796,4315.9,4315.8,1.226]
[1756880341232,0.116,4315.9,4315.8,1.226]
[1756880341545,0.116,4315.9,4315.8,3.54306751]
[1756880342929,0.116,4315.9,4315.8,1.226]
[1756880343174,0.116,4315.9,4315.8,14.504]
[1756880343324,0.215,4315.9,4315.8,14.504]
[1756880343648,10.37361383,4315.9,4315.8,0.004]
[1756880345257,9.98601383,4315.9,4315.8,0.004]
[1756880345446,10.37361383,4315.9,4315.8,0.004]
[1756880347059,5.53201383,4315.9,4315.8,0.004]
[1756880347269,3.215,4315.9,4315.8,0.004]
[1756880347430,7.095,4315.9,4315.8,0.004]
[1756880348267,9.51391383,4315.9,4315.8,0.004]
[1756880348472,9.98791383,4315.9,4315.8,0.004]
[1756880349258,10.37261383,4315.9,4315.8,0.004]
[1756880349628,9.98791383,4315.9,4315.8,0.004]
[1756880350343,5.53491383,4315.9,4315.8,0.004]
[1756880350540,15.53326796,4315.9,4315.8,0.004]
[1756880351160,9.23825413,4315.9,4315.8,0.004]
[1756880351370,13.21625413,4315.9,4315.8,0.004]
[1756880351535,15.53326796,4315.9,4315.8,0.004]
[1756880351930,5.43301383,4315.9,4315.8,0.004]
[1756880352165,13.11435413,4315.9,4315.8,0.004]
[1756880352567,15.43136796,4315.9,4315.8,0.004]
[1756880353066,16.01006796,4315.9,4315.8,0.004]
[1756880353773,15.53606796,4315.9,4315.8,0.004]
[1756880358982,11.55806796,4315.9,4315.8,0.004]
[1756880359291,15.53406796,4315.9,4315.8,0.004]
[1756880361765,13.11235413,4315.9,4315.8,0.004]
[1756880361966,9.13635413,4315.9,4315.8,0.305]
[1756880362307,13.11135413,4315.9,4315.8,1.226]
[1756880362629,15.42836796,4315.9,4315.8,1.226]
[1756880362769,13.11135413,4315.9,4315.8,0.7412]
[1756880363175,13.11135413,4315.9,4315.8,1.226]
[1756880363176,13.11035413,4315.9,4315.8,1.226]
[1756880363495,7.09,4315.9,4315.8,1.226]
[1756880363663,0.116,4315.9,4315.8,1.226]
[1756880363870,6.02035413,4316.3,4315.8,5.316]
[1756880364089,6.02035413,4316.3,4315.9,0.921]
[1756880364289,6.02035413,4316.3,4316.2,0.301]
[1756880364497,6.02035413,4316.3,4316.2,1.222]
[1756880365387,0.116,4316.4,4316.2,1.222]
[1756880365589,0.001,4316.6,4316.3,3.23779911]
[1756880365894,0.117,4316.6,4316.5,0.301]
[1756880366082,0.117,4316.6,4316.5,14.801]
[1756880366285,0.117,4316.6,4316.5,15.722]
[1756880367208,0.117,4316.6,4316.5,18.03869176]
[1756880367586,0.117,4316.6,4316.5,15.722]
[1756880367785,0.117,4316.6,4316.5,18.03869176]
[1756880368078,0.001,4316.6,4316.5,18.03869176]
[1756880369137,0.001,4316.6,4316.5,22.01169176]
[1756880369412,0.001,4316.6,4316.5,22.01069176]
[1756880370992,0.001,4316.6,4316.5,15.2858]
[1756880371303,0.001,4316.6,4316.5,19.2068]
[1756880372429,0.001,4316.6,4316.5,19.2058]
[1756880373143,0.001,4316.6,4316.5,19.692]
[1756880373438,0.001,4316.6,4316.5,22.00869176]
[1756880374325,0.001,4316.6,4316.5,19.692]
[1756880375208,0.001,4316.6,4316.5,22.00869176]
[1756880377213,0.001,4316.6,4316.5,18.03769176]
[1756880377436,0.001,4316.6,4316.5,22.00769176]
[1756880378343,0.001,4316.6,4316.5,7.50769176]
[1756880378912,0.001,4316.6,4316.5,22.00769176]
[1756880380944,0.001,4316.6,4316.5,17.55149176]
[1756880381139,0.001,4316.6,4316.5,21.51949176]
[1756880385235,0.001,4316.6,4316.5,22.00569176]
[1756880386652,0.001,4316.6,4316.5,22.12169176]
[1756880389042,0.001,4316.6,4316.5,18.15369176]
[1756880389248,0.001,4316.6,4316.5,22.11969176]
[1756880392272,0.001,4316.6,4316.5,22.11869176]
[1756880394768,0.001,4316.6,4316.5,17.23369176]
[1756880395088,0.001,4316.6,4316.5,21.19769176]
[1756880395650,0.001,4316.6,4316.5,21.63149176]
[1756880397479,0.001,4316.6,4316.5,21.63049176]
[1756880398984,0.001,4316.6,4316.5,21.19669176]
[1756880400354,0.1,4316.6,4316.5,20.89569176]
[1756880400658,0.1,4316.6,4316.5,20.89469176]
[1756880401457,0.1,4316.6,4316.5,16.93269176]
[1756880401659,0.1,4316.6,4316.5,20.89469176]
[1756880402060,0.1,4316.6,4316.5,20.77869176]
[1756880403679,0.1,4316.6,4316.5,6.27869176]
[1756880404076,0.001,4316.6,4316.5,6.59459176]
[1756880404276,0.001,4316.6,4316.5,22.01949176]
[1756880407294,0.001,4316.6,4316.5,18.17349176]
[1756880407486,0.001,4316.6,4316.5,21.67019176]
[1756880407798,0.1,4316.6,4316.5,14.616]
[1756880407976,0.9516,4316.6,4316.5,0.116]
[1756880408177,1.0676,4316.6,4316.3,3.96]
[1756880408390,0.8516,4316.5,4316.3,3.96]
[1756880408676,0.1019,4316.4,4316.3,18.46]
[1756880410090,0.9506,4316.4,4316.3,18.46]
[1756880412605,0.9506,4316.4,4316.3,3.96]
[1756880412813,0.5659,4316.4,4316.3,3.96]
[1756880413010,0.5659,4316.4,4315.8,0.12]
[1756880413315,0.59153483,4316.4,4316.3,14.5]
[1756880413487,0.59153483,4316.4,4316.3,18.459]
[1756880413689,0.97623483,4316.4,4316.3,18.459]
[1756880414093,0.97623483,4316.4,4316.3,3.959]
[1756880414398,1.09223483,4316.4,4316.3,3.959]
[1756880415112,2.31680165,4316.3,4315.8,18.463]
[1756880415278,0.1047,4315.9,4315.8,18.463]
[1756880415486,0.6847,4315.9,4315.8,18.463]
[1756880416001,0.6847,4315.9,4315.8,0.004]
[1756880416205,0.6847,4315.9,4315.8,3.963]
[1756880418816,0.2207,4315.9,4315.8,3.963]
[1756880419187,0.116,4315.9,4315.8,3.963]
[1756880419388,0.2235,4315.9,4315.8,3.963]
[1756880420019,0.2235,4315.9,4315.8,18.463]
[1756880422213,0.116,4315.9,4315.8,18.463]
[1756880423290,0.116,4315.9,4315.8,18.7789]
[1756880423495,0.116,4316.0,4315.8,15.2805]
[1756880423691,0.116,4316.0,4315.9,3.958]
[1756880424018,0.116,4316.0,4315.9,7.19991383]
[1756880424218,0.116,4316.0,4315.9,7.51581383]
[1756880425222,0.001,4316.6,4316.3,2.31675169]
[1756880425545,0.116,4316.5,4316.4,6.27371817]
[1756880425689,0.116,4316.5,4316.4,7.51451817]
[1756880426626,0.001,4316.6,4316.5,2.31669176]
[1756880426926,0.001,4316.6,4316.5,6.73799176]
[1756880427103,0.001,4316.6,4316.5,7.51449176]
[1756880428520,0.001,4316.6,4316.5,22.01449176]
[1756880429732,0.001,4316.6,4316.5,22.13049176]
[1756880433631,0.001,4316.6,4316.5,22.12849176]
[1756880434799,0.001,4316.6,4316.5,18.17349176]
[1756880435004,0.001,4316.6,4316.5,22.12849176]
[1756880437607,0.001,4316.6,4316.5,18.17349176]
[1756880437809,0.001,4316.6,4316.5,22.12749176]
[1756880441761,0.1,4316.6,4316.5,20.88569176]
[1756880441963,0.1,4316.6,4316.5,16.93269176]
[1756880442165,0.1,4316.6,4316.5,20.88569176]
[1756880443358,0.001,4316.6,4316.5,20.88569176]
[1756880443932,0.001,4316.6,4316.5,22.11419176]
[1756880448074,0.001,4316.6,4316.5,18.16119176]
[1756880448277,0.001,4316.6,4316.5,22.11319176]
[1756880450487,0.001,4316.6,4316.5,21.64949176]
[1756880450669,0.001,4316.6,4316.5,22.11219176]
[1756880454171,1e-08,4316.6,4316.5,22.90419176]
[1756880454465,1e-08,4316.6,4316.5,25.90419176]
[1756880455188,1e-08,4316.6,4316.5,25.9970176]
[1756880460290,0.001,4317.5,4317.4,2.31620882]
[1756880460604,0.001,4317.5,4317.4,8.01220882]
[1756880460978,0.001,4317.5,4317.4,22.51220882]
[1756880461676,0.001,4317.5,4317.4,22.79930882]
[1756880461891,0.001,4317.5,4317.4,23.25780882]
[1756880462521,0.001,4317.5,4317.4,22.51220882]
[1756880462922,0.5831,4317.5,4317.4,22.51220882]
[1756880463106,0.9707,4317.5,4317.4,18.56420882]
[1756880463288,0.9707,4317.5,4317.4,22.51220882]
[1756880463483,0.9707,4317.5,4317.4,22.51120882]
[1756880464704,0.1,4317.5,4317.4,22.51120882]
[1756880466517,0.5831,4317.5,4317.4,22.51120882]
[1756880467199,0.001,4317.5,4317.4,22.51120882]
[1756880467523,0.001,4317.5,4317.4,22.79830882]
[1756880467822,0.001,4317.5,4317.4,30.52342193]
[1756880467991,0.001,4317.5,4317.4,28.81822193]
[1756880468199,0.001,4317.5,4317.4,29.73142193]
[1756880468404,0.001,4317.5,4317.4,23.71150882]
[1756880468606,0.001,4317.5,4317.4,23.25680882]
[1756880468931,0.001,4317.5,4317.4,19.30980882]
[1756880469138,0.001,4317.5,4317.4,23.71050882]
[1756880469337,0.001,4317.5,4317.4,19.30980882]
[1756880469527,0.02,4317.8,4317.7,9.127961]
[1756880469702,1e-08,4317.8,4317.7,13.073961]
[1756880469899,1e-08,4317.8,4317.7,8.37034789]
[1756880470121,1e-08,4317.8,4317.7,21.67004789]
[1756880470326,1e-08,4317.8,4317.7,22.04994875]
[1756880470528,1e-08,4317.8,4317.7,22.50844875]
[1756880470735,1e-08,4317.8,4317.7,18.56244875]
[1756880470933,1e-08,4317.8,4317.7,21.76284875]
[1756880471316,0.02563483,4319.0,4317.7,21.76284875]
[1756880471317,0.5031,4320.8,4319.7,2.31497557]
[1756880471515,0.4831,4320.5,4319.7,8.00897557]
[1756880471718,0.4105,4320.8,4319.7,4.06297557]
[1756880471719,0.6021,4319.8,4319.7,4.06297557]
[1756880471922,0.9897,4319.8,4319.7,22.50897557]
[1756880472116,0.6021,4319.8,4319.7,16.248]
[1756880472350,1.1057,4319.8,4319.7,18.445]
[1756880472531,1.1057,4319.8,4319.7,20.75997557]
[1756880472734,0.119,4319.8,4319.7,20.75997557]
[1756880472913,0.02,4319.8,4319.7,20.87597557]
[1756880473242,0.02,4319.8,4319.7,21.62157557]
[1756880473640,0.02,4319.8,4319.7,22.07627557]
[1756880473945,0.02,4319.8,4319.7,22.86827557]
[1756880475722,1e-08,4319.8,4319.7,25.86827557]
[1756880477440,1e-08,4319.8,4319.7,26.35137557]
[1756880478044,1e-08,4319.8,4319.7,32.37028868]
[1756880482235,1e-08,4319.8,4319.7,32.36928868]
[1756880482962,1e-08,4319.8,4319.7,31.16898868]
[1756880483330,1e-08,4319.8,4319.7,31.45608868]
[1756880483560,1e-08,4319.8,4319.7,31.91458868]
[1756880484059,1e-08,4319.8,4319.7,21.20607557]
[1756880484266,1e-08,4319.8,4319.7,31.16898868]
[1756880484431,1e-08,4319.8,4319.7,31.91458868]
[1756880485334,0.00100001,4319.8,4319.7,32.36928868]
[1756880485546,1e-08,4319.8,4319.7,32.36928868]
[1756880487447,1e-08,4319.8,4319.7,33.68549653]
[1756880489733,1e-08,4319.8,4319.7,33.23079653]
[1756880489931,1e-08,4319.8,4319.7,25.14807557]
[1756880490134,1e-08,4319.8,4319.7,21.20607557]
[1756880490336,0.59040001,4319.8,4319.7,17.41407557]
[1756880490658,0.97800001,4319.8,4319.7,20.87297557]
[1756880491067,0.59040001,4319.8,4319.7,20.87297557]
[1756880492083,1e-08,4319.8,4319.7,20.87297557]
[1756880492587,1e-08,4319.8,4319.7,21.63627557]
[1756880492874,1e-08,4319.8,4319.7,30.25999653]
[1756880493586,1e-08,4319.8,4319.7,33.25999653]
[1756880494650,1e-08,4319.8,4319.7,21.98187557]
[1756880494874,1e-08,4319.8,4319.7,25.92387557]
[1756880495750,1e-08,4320.3,4320.2,3.10670765]
[1756880495955,1e-08,4320.3,4320.2,16.13182861]
[1756880496155,1e-08,4320.3,4320.2,17.39072861]
[1756880496371,1e-08,4320.3,4320.2,31.89072861]
[1756880496654,1e-08,4320.3,4320.2,32.38212861]
[1756880497802,0.09900001,4320.3,4320.2,23.78710765]
[1756880498670,0.59040001,4320.3,4320.2,22.99510765]
[1756880499456,0.09900001,4320.3,4320.2,22.99510765]
[1756880500758,0.09900001,4320.3,4320.2,22.99410765]
[1756880500759,0.59040001,4320.3,4320.2,22.99410765]
[1756880501600,0.97800001,4320.3,4320.2,22.50270765]
[1756880502160,0.59040001,4320.3,4320.2,22.50270765]
[1756880503383,0.09900001,4320.3,4320.2,22.50270765]
[1756880504475,0.09900001,4320.3,4320.2,8.00270765]
[1756880505178,0.09900001,4320.3,4320.2,22.50270765]
[1756880508079,1e-08,4320.3,4320.2,22.50270765]
[1756880512868,1e-08,4320.3,4320.2,22.80220765]
[1756880513073,1e-08,4320.3,4320.2,23.76160765]
[1756880513276,1e-08,4320.3,4320.2,24.25300765]
[1756880514376,1e-08,4320.3,4320.2,27.25300765]
[1756880519545,1e-08,4320.3,4320.2,26.75540765]
[1756880519745,1e-08,4320.3,4320.2,26.29160765]
[1756880520038,1e-08,4320.3,4320.2,27.25480765]
[1756880521341,1e-08,4320.3,4320.2,26.76500765]
[1756880521999,0.97980001,4320.3,4320.2,22.50070765]
[1756880522692,0.97980001,4320.3,4320.2,18.56170765]
[1756880523034,0.59220001,4320.3,4320.2,22.50070765]
[1756880523285,0.59220001,4320.3,4320.2,18.56170765]
[1756880523448,0.59220001,4320.3,4320.2,22.50070765]
[1756880524048,0.09900001,4320.3,4320.2,22.50070765]
[1756880524250,1e-08,4320.3,4320.2,22.50070765]
[1756880524466,0.10190001,4320.3,4320.2,22.50070765]
[1756880524763,1e-08,4320.3,4320.2,23.28510765]
[1756880525228,1e-08,4320.3,4320.2,23.77490765]
[1756880527066,1e-08,4320.3,4320.2,22.50070765]
[1756880527438,1e-08,4320.3,4320.2,23.28510765]
[1756880527760,1e-08,4320.3,4320.2,23.77490765]
[1756880528409,0.30380001,4320.3,4320.2,18.56170765]
[1756880528560,0.30380001,4320.3,4320.2,22.49970765]
[1756880529777,1e-08,4320.3,4320.2,22.49970765]
[1756880530477,0.30260001,4320.3,4320.2,22.49970765]
[1756880531403,1e-08,4320.3,4320.2,22.49970765]
[1756880531563,1e-08,4320.3,4320.2,22.81070765]
[1756880531762,0.30380001,4320.3,4320.2,22.49970765]
[1756880532005,0.79700001,4320.3,4320.2,22.49970765]
[1756880532560,0.98190001,4320.3,4320.2,22.49970765]
[1756880534877,0.79700001,4320.3,4320.2,22.49970765]
[1756880535495,0.79700001,4320.3,4320.2,7.99970765]
[1756880535790,0.79700001,4320.3,4320.2,7.99870765]
[1756880536109,0.79700001,4320.3,4320.2,14.616]
[1756880536280,0.98190001,4320.3,4320.2,18.553]
[1756880536606,0.98190001,4320.3,4320.2,18.437]
[1756880539542,0.98190001,4320.3,4320.2,14.5]
[1756880539706,0.98190001,4320.3,4320.2,18.437]
[1756880544328,0.79700001,4320.3,4320.2,18.437]
[1756880546548,0.91300001,4320.3,4320.2,18.437]
[1756880547203,0.41980001,4320.3,4320.2,18.437]
[1756880547657,0.41980001,4320.3,4320.2,18.748]
[1756880547658,0.11600001,4320.3,4320.2,18.748]
[1756880547832,1e-08,4320.3,4320.2,22.14190765]
[1756880550943,1e-08,4320.3,4320.2,7.64190765]
[1756880551445,1e-08,4320.3,4320.2,22.14190765]
[1756880553125,1e-08,4320.3,4320.2,28.15010386]
[1756880556567,1e-08,4320.3,4320.2,17.73150765]
[1756880556770,1e-08,4320.3,4320.2,22.13060765]
[1756880561169,1e-08,4320.3,4320.2,18.19560765]
[1756880561374,1e-08,4320.3,4320.2,22.13060765]
[1756880562744,1e-08,4320.3,4320.2,18.19560765]
[1756880562944,1e-08,4320.3,4320.2,22.12960765]
[1756880563471,1e-08,4320.3,4320.2,28.13780386]
[1756880564050,1e-08,4320.3,4320.2,22.12960765]
[1756880565884,0.09900001,4320.3,4320.2,16.93070765]
[1756880566078,0.09900001,4320.3,4320.2,20.86470765]
[1756880566678,1e-08,4320.3,4320.2,20.86470765]
[1756880567777,0.10190001,4320.3,4320.2,20.86470765]
[1756880568078,0.56440001,4320.3,4320.2,16.93070765]
[1756880568248,0.56440001,4320.3,4320.2,20.86470765]
[1756880568455,0.10190001,4320.3,4320.2,20.86470765]
[1756880568652,0.56440001,4320.3,4320.2,20.86370765]
[1756880569086,1e-08,4320.3,4320.2,20.86370765]
[1756880569471,1e-08,4320.3,4320.2,6.36370765]
[1756880569872,0.09900001,4320.3,4320.2,20.86370765]
[1756880570070,0.09900001,4320.3,4320.2,14.5]
[1756880570071,6.95729622,4320.3,4320.2,14.5]
[1756880570402,1.06510001,4320.3,4320.2,14.5]
[1756880570957,1.06510001,4320.3,4320.2,18.433]
[1756880570958,0.67750001,4320.3,4320.2,18.433]
[1756880571303,1.06510001,4320.3,4320.2,18.433]
[1756880573296,0.67750001,4320.3,4320.2,18.433]
[1756880573978,1.06510001,4320.3,4320.2,18.433]
[1756880575077,1.06510001,4320.3,4320.2,14.5]
[1756880575302,1.06510001,4320.3,4320.2,18.433]
[1756880575508,1.06510001,4320.3,4320.2,3.933]
[1756880576198,0.67750001,4320.3,4320.2,3.933]
[1756880576409,6.68569622,4320.3,4320.1,3.937]
[1756880577404,0.4625,4320.2,4320.1,3.937]
[1756880577897,0.5644,4320.2,4320.1,3.937]
[1756880578292,6.11009621,4320.2,4320.1,3.937]